Cogmind - Beta 14 @@@ ROGUE MODE // 2024.09.23 @ 18:38:40 Player: Duduxx Result: Destroyed by G-47 Trooper with Particle Gun Performance ------------- Evolutions (2) 1000 Regions Visited (6) 1200 Robots Destroyed (52) 260 Value Destroyed (1567) 1567 Prototype IDs (24) 480 Alien Tech Used (0) 0 Bonus (722) 722 TOTAL SCORE: 5229 Bonus ------- High Alert Combat Kills 37 Follower Combat Kills 185 Entered Garrisons 200 Aligned with FarCom 300 Cogmind --------- Core Integrity 0/550 Matter 265/300 Energy 99/100 System Corruption 4% Temperature Cool (9) Movement Core (50) Location -8/Garrison Parts ------- > --- POWER (2) -------- (None) > --- PROPULSION (3) --- (None) > --- UTILITY (4) ------ Hacking Suite > --- WEAPON (2) ------- Improved Datajack > --- INVENTORY (5) ---- Light Nuclear Core Large Storage Unit Experimental Sensor Array Trap Reconfigurator Peak State ------------ > --- POWER ------------ Improved Deuterium Engine Improved Deuterium Engine > --- PROPULSION ------- Improved Titanium Leg Improved Titanium Leg Improved Titanium Leg > --- UTILITY ---------- Cooling System Medium Storage Unit Hacking Suite Hacking Suite > --- WEAPON ----------- Plasma Cannon Plasma Cannon > --- INVENTORY -------- Improved Deuterium Engine Improved Titanium Leg Cooling System Experimental Sensor Array Hacking Suite Trap Reconfigurator Light EM Pulse Cannon Light EM Pulse Cannon Improved Grenade Launcher Welding Torch [Rating: 40] Favorites ----------- Power Improved Deuterium Engine Engine Improved Deuterium Engine Power Core Light Nuclear Core Propulsion Light Treads Treads Light Treads Leg Improved Titanium Leg Flight Unit Cesium-ion Thruster Utility Hacking Suite Device Cooling System Storage Medium Storage Unit Processor Visual Processing Unit Hackware Hacking Suite Protection Hardened Light Armor Plating Weapon Light Cannon Energy Gun EM Pulse Gun Energy Cannon Plasma Cannon Ballistic Gun Assault Rifle Ballistic Cannon Light Cannon Launcher Grenade Launcher Special Weapon Welding Torch Special Melee Weapon Improved Datajack Build | -11 -10 -10 -10 -9 -8 -8 ------- Run | Yrd Mat Min Exi Min Mat Gar Slots Evolved 4 | . . . . . 4 . Power 1 | . . . . . 1 . Propulsion 1 | . . . . . 1 . Utility 2 | . . . . . 2 . Weapon . | . . . . . . . Parts Attached 64 | 6 9 2 . 5 24 18 Power 8 | 1 1 . . . 4 2 Engine 7 | 1 1 . . . 4 1 Core 1 | . . . . . . 1 Reactor . | . . . . . . . Propulsion 14 | 2 . . . 2 8 2 Treads 7 | 2 . . . 2 1 2 Leg 6 | . . . . . 6 . Wheel . | . . . . . . . Hover . | . . . . . . . Flight 1 | . . . . . 1 . Utility 16 | 1 3 2 . 1 7 2 Device 7 | . 1 2 . . 2 2 Storage 3 | 1 1 . . . 1 . Processor 1 | . 1 . . . . . Hackware 3 | . . . . . 3 . Protection 2 | . . . . 1 1 . Artifact . | . . . . . . . Weapon 26 | 2 5 . . 2 5 12 Energy Gun 2 | 2 . . . . . . Energy Cannon 9 | . . . . . 4 5 Ballistic Gun 3 | . 2 . . . . 1 Ballistic Cannon 4 | . 2 . . 1 1 . Launcher 5 | . 1 . . 1 . 3 Special Weapon 2 | . . . . . . 2 Impact Weapon . | . . . . . . . Slashing Weapon . | . . . . . . . Piercing Weapon . | . . . . . . . Special Melee Weapon 1 | . . . . . . 1 Unidentified Prototypes 1 | . . 1 . . . . Parts Lost 27 | . 3 . . . 5 19 Power 6 | . 1 . . . 1 4 Propulsion 6 | . . . . . 2 4 Utility 6 | . . . . . 2 4 Weapon 9 | . 2 . . . . 7 Highest Loss Streak 13 | . 3 . . . 2 13 To Critical Strikes . | . . . . . . . Average Slot Usage (%) 96 | . 96 99 100 100 96 90 Engine 15 | . 13 14 14 14 17 17 Treads 15 | . 28 28 28 28 3 4 Leg 10 | . . . . . 21 18 Device 7 | . . 13 14 . 9 8 Storage 11 | . 14 14 14 14 9 8 Processor 1 | . 12 . . . . . Hackware 6 | . . . . . 13 9 Protection 3 | . . . . 13 3 5 Energy Gun 1 | . 9 . . . . . Energy Cannon 8 | . . . . . 17 13 Ballistic Cannon 11 | . 11 28 28 25 . . Peak Build Rating 40 | 6 9 16 10 11 40 33 Average Rating 20 | 4 7 8 9 10 35 27 On Entrance 11 | . 6 8 9 10 11 33 Naked Turns . | . . . . . . . Heaviest Build 64 | 12 20 20 20 24 59 64 Greatest Support 60 | 40 40 40 40 40 60 40 Greatest Overweight (x) 6 | . . . . . 1 6 Average Overweight (x) . | . . . . . . 1 Largest Inventory Capacity 15 | 8 10 10 10 10 15 15 Average Capacity 10 | 7 8 10 10 10 11 14 Most Carried 12 | 1 7 8 9 10 12 11 Average Carried 8 | . 3 7 8 9 9 8 Final Capacity 15 | 8 10 10 10 10 15 5 Final Carried 11 | 1 6 8 9 10 11 4 Class Distribution -------------------- 79% | Mutant 18% | Hacker-Mutant Dominant Class ---------------- Mutant | -10/Materials Mutant | -10/Mines Mutant | -10/Exiles Mutant | -9/Mines Hacker-Mutant | -8/Materials Mutant | -8/Garrison Resources | -11 -10 -10 -10 -9 -8 -8 ----------- Run | Yrd Mat Min Exi Min Mat Gar Matter Collected 1042 | 221 185 . . 42 410 184 Remotely . | . . . . . . . Salvage Created 1747 | . 293 . . 42 1125 287 Parts 85 | . 15 . . 8 49 13 Haulers Intercepted 2 | . . . . . 2 . Recyclers Shooed 1 | . 1 . . . . . Parts Field Recycled . | . . . . . . . Retrieved Matter . | . . . . . . . Parts Self-Destructed . | . . . . . . . Prevented . | . . . . . . . Kills | -11 -10 -10 -10 -9 -8 -8 ------- Run | Yrd Mat Min Exi Min Mat Gar Combat Hostiles Destroyed 43 | . 8 . . 3 20 12 Guns 1 | . . . . . . 1 Cannons 29 | . 4 . . . 18 7 AOE 11 | . 4 . . 3 . 4 Classes Destroyed 12 | . 5 . . 1 5 1 Tunneler 2 | . . . . 2 . . Hauler 2 | . . . . . 2 . Recycler 2 | . 1 . . . 1 . Operator 1 | . 1 . . . . . Watcher 2 | . 1 . . . 1 . Swarmer 13 | . 3 . . 3 3 4 Cutter 3 | . . . . . . 3 Grunt 18 | . 5 . . . 10 3 Brawler 1 | . . . . . 1 . Sentry 6 | . . . . . 4 2 Hunter 1 | . . . . . 1 . Heavy 1 | . . . . . 1 . Best Kill Streak 9 | . 5 . . 4 4 9 Combat Bots Only 9 | . 4 . . 3 4 9 Max Kills in Single Turn 3 | . 1 . . 2 1 3 Gunslinging . | . . . . . . . Exploded 2 | . 1 . . 2 . 2 Melee . | . . . . . . . Uniques/NPCs Destroyed . | . . . . . . . Combat | -11 -10 -10 -10 -9 -8 -8 -------- Run | Yrd Mat Min Exi Min Mat Gar Hostile Shots Fired 283 | . 44 . . 9 98 132 Missed 71 | . 13 . . 2 25 31 Damage Taken 3313 | . 385 . . 55 1234 1639 Core 602 | . 45 . . . 184 373 Absorbed by Shields . | . . . . . . . Core Remaining (%) 91 | 100 . . . 82 . . Volleys Fired 159 | . 26 . . 2 69 62 Largest 2 | . 2 . . 2 2 2 Hottest 160 | . 80 . . 65 160 160 Shots Fired 265 | . 46 . . 4 135 80 Gun 41 | . 20 . . . . 21 Cannon 204 | . 18 . . 2 135 49 Launcher 15 | . 8 . . 2 . 5 Special 5 | . . . . . . 5 Kinetic 54 | . 18 . . 2 13 21 Thermal 159 | . . . . . 114 45 Explosive 15 | . 8 . . 2 . 5 Electromagnetic 37 | . 20 . . . 8 9 Robot Hit Streak 10 | . 3 . . . 9 10 Robot Miss Streak 5 | . 5 . . 2 2 3 Penetration Max . | . . . . . . . Secondary Targets . | . . . . . . . Shots Hit Robots 148 | . 20 . . . 90 38 Core Hits 76 | . 16 . . 5 37 18 Critical Kills 2 | . . . . . 2 . Critical Parts Destroyed . | . . . . . . . Critical Strikes 3 | . 1 . . . 2 . Meltdown 2 | . . . . . 2 . Blast 1 | . 1 . . . . . Melee Attacks 1 | . . . . . . 1 Impact . | . . . . . . . Slashing . | . . . . . . . Piercing . | . . . . . . . Sneak Attacks . | . . . . . . . Combat Hostiles . | . . . . . . . Follow-up Attacks . | . . . . . . . Damage Inflicted 4486 | 1 686 . . 133 2397 1269 Guns 235 | . 115 . . . . 120 Cannons 2932 | . 136 . . . 2281 515 Explosions 1187 | . 432 . . 121 . 634 Melee . | . . . . . . . Ramming 132 | 1 3 . . 12 116 . Kinetic 408 | . 136 . . . 152 120 Thermal 2437 | . . . . . 2006 431 Explosive 1187 | . 432 . . 121 . 634 Electromagnetic 322 | . 115 . . . 123 84 Impact . | . . . . . . . Slashing . | . . . . . . . Piercing . | . . . . . . . Highest Corruption 4 | . . . . . 4 4 Average Corruption 3 | . . . . . 3 4 Corruption Purged . | . . . . . . . Corruption Blocked . | . . . . . . . Effects 27 | . . . . . 9 18 Message Errors 7 | . . . . . 3 4 Matter Fused 8 | . . . . . 2 6 Energy Discharges 1 | . . . . . . 1 Parts Fused 1 | . . . . . . 1 Data Loss (minor) 2 | . . . . . 1 1 Data Loss (major) 4 | . . . . . 1 3 Misfires 1 | . . . . . . 1 Weapon Failures 3 | . . . . . 2 1 Overload Shots . | . . . . . . . Overflow Damage 113 | . 14 . . . 19 80 Projectiles 44 | . . . . . 19 25 Explosions 69 | . 14 . . . . 55 Melee . | . . . . . . . Knockbacks 7 | . 3 . . 1 3 . Impact 4 | . . . . 1 3 . Kinetic 3 | . 3 . . . . . Secondary . | . . . . . . . Self-Inflicted Damage 78 | . 21 . . . . 57 Shots 4 | . 2 . . . . 2 Rammed 4 | 1 1 . . 2 . . Targets Rammed 18 | 1 1 . . 3 13 . Kicked 13 | . . . . . 13 . Crushed 1 | . . . . 1 . . Highest Temperature 520 | . 190 . . 18 472 520 Average Temperature 113 | . 64 . . 10 109 141 Received Heat Transfer 1290 | . 183 . . . 360 747 Effects 7 | . . . . . 2 5 Shutdowns 4 | . . . . . 1 3 Energy Bleed 1 | . . . . . 1 . Damage (minor) 1 | . . . . . . 1 Damage (core) 1 | . . . . . . 1 Siege Activations . | . . . . . . . Robots Corrupted . | . . . . . . . Combat Hostiles . | . . . . . . . Parts Fried . | . . . . . . . Impact Corruptions 1 | . . . . . 1 . Robots Melted 2 | . . . . . 2 . Combat Hostiles 2 | . . . . . 2 . Parts Melted 22 | . . . . . 18 4 Heat Transferred 4647 | . . . . . 3950 697 Parts Sabotaged . | . . . . . . . Parts Stolen . | . . . . . . . Parts Stripped . | . . . . . . . Power Chain Reactions . | . . . . . . . Alert | -11 -10 -10 -10 -9 -8 -8 ------- Run | Yrd Mat Min Exi Min Mat Gar Peak Influence 452 | . 215 56 . 93 428 452 Initial 223 | . . 56 . . 35 223 Average 179 | . 79 56 . 5 239 327 Maximum Alert Level 2 | . 1 . . . 2 2 Low Security (%) 49 | 100 77 100 . 100 33 . Level 1 42 | . 22 . . . 63 67 Level 2 7 | . . . . . 3 32 Level 3 . | . . . . . . . Level 4 . | . . . . . . . Level 5 . | . . . . . . . High Security . | . . . . . . . Max Security . | . . . . . . . Squads Dispatched 8 | . 1 . . . 7 . Investigation 3 | . 1 . . . 2 . Extermination . | . . . . . . . Reinforcement 5 | . . . . . 5 . Assault . | . . . . . . . Garrison . | . . . . . . . Intercept . | . . . . . . . Searches Triggered . | . . . . . . . Construction Impeded 1 | . . . . . 1 . Haulers Reinforced . | . . . . . . . Active Scanning Responses . | . . . . . . . Cargo Convoy Interrupts . | . . . . . . . Stealth | -11 -10 -10 -10 -9 -8 -8 --------- Run | Yrd Mat Min Exi Min Mat Gar Distress Signals 1 | . 1 . . . . . Communications Jammed . | . . . . . . . Distress Signals . | . . . . . . . Times Spotted 69 | . 15 . . 5 34 15 Peak Tracking Total 8 | . 5 . . 3 5 8 Tactical Retreats 2 | . . . . 1 1 . Traps | -11 -10 -10 -10 -9 -8 -8 ------- Run | Yrd Mat Min Exi Min Mat Gar Traps Triggered 5 | . 1 . . . 2 2 Indirectly . | . . . . . . . Trap Hack Attempts . | . . . . . . . Triggered . | . . . . . . . Disarmed . | . . . . . . . Reprogrammed . | . . . . . . . Reused . | . . . . . . . Traps Extracted . | . . . . . . . Installed . | . . . . . . . Triggered . | . . . . . . . Machines | -11 -10 -10 -10 -9 -8 -8 ---------- Run | Yrd Mat Min Exi Min Mat Gar Machines Disabled 7 | . 4 . . . 3 . Max in Single Turn 2 | . 2 . . . 1 . Machines Repaired . | . . . . . . . Machines Dismantled . | . . . . . . . Machines Sabotaged . | . . . . . . . Overloaded Fab Kills . | . . . . . . . Hacking | -11 -10 -10 -10 -9 -8 -8 --------- Run | Yrd Mat Min Exi Min Mat Gar Machines Accessed 10 | . 1 . 5 . 4 . Terminals 3 | . 1 . . . 2 . Fabricators . | . . . . . . . Repair Stations . | . . . . . . . Recycling Units . | . . . . . . . Scanalyzers 1 | . . . . . 1 . Garrison Access 1 | . . . . . 1 . Total Hacks 35 | . 2 . 20 . 13 . Successful 28 | . . . 20 . 8 . Failed 7 | . 2 . . . 5 . Catastrophic 1 | . . . . . 1 . Database Lockouts . | . . . . . . . Manual 11 | . 2 . 1 . 8 . Terminals 9 | . 2 . . . 7 . Fabricators . | . . . . . . . Repair Stations . | . . . . . . . Recycling Units . | . . . . . . . Scanalyzers 4 | . . . . . 4 . Garrison Access 2 | . . . . . 2 . Terminal Hacks 23 | . . . 20 . 3 . Record 19 | . . . 19 . . . Recall Investigation 1 | . . . . . 1 . Recall Reinforcements 1 | . . . . . 1 . Hauler Manifests 1 | . . . . . 1 . Derelict Proto ID Bank 1 | . . . 1 . . . Fabricator Hacks . | . . . . . . . Repair Station Hacks . | . . . . . . . Recycling Unit Hacks . | . . . . . . . Scanalyzer 4 | . . . . . 4 . Insert Component 2 | . . . . . 2 . Analyze 2 | . . . . . 2 . Garrison Access Hacks 1 | . . . . . 1 . Unlock Access 1 | . . . . . 1 . Unauthorized Hacks . | . . . . . . . Terminals . | . . . . . . . Fabricators . | . . . . . . . Repair Stations . | . . . . . . . Recycling Units . | . . . . . . . Scanalyzers . | . . . . . . . Garrison Access . | . . . . . . . Data Cores Recovered 1 | . 1 . . . . . Used . | . . . . . . . Hacking Detections 4 | . 1 . . . 3 . Full Trace Events 3 | . 1 . . . 2 . Feedback Events . | . . . . . . . Feedback Blocked . | . . . . . . . Robot Schematics Acquired . | . . . . . . . Robots Built . | . . . . . . . Authchips . | . . . . . . . Time . | . . . . . . . Total Robot Build Rating . | . . . . . . . Part Schematics Acquired 2 | . . . . . 2 . Parts Built . | . . . . . . . Authchips . | . . . . . . . Time . | . . . . . . . Total Part Build Rating . | . . . . . . . Parts Repaired . | . . . . . . . Time . | . . . . . . . Parts Recycled . | . . . . . . . Recycled Matter . | . . . . . . . Retrieved Matter . | . . . . . . . Retrieved Components . | . . . . . . . Parts Scanalyzed 2 | . . . . . 2 . Part Schematics Acquired 2 | . . . . . 2 . Parts Damaged 1 | . . . . . 1 . Bothacking | -11 -10 -10 -10 -9 -8 -8 ------------ Run | Yrd Mat Min Exi Min Mat Gar Used RIF Installer . | . . . . . . . Robots Hacked 1 | . . . . . . 1 Non-combat . | . . . . . . . Combat 1 | . . . . . . 1 Robot Hacks Applied 1 | . . . . . . 1 parse_system 1 | . . . . . . 1 Relay Couplers Released . | . . . . . . . Fabnet Peak Effective % . | . . . . . . . Robots Rewired . | . . . . . . . Allies Hacked . | . . . . . . . Hacks Repelled . | . . . . . . . Allies | -11 -10 -10 -10 -9 -8 -8 -------- Run | Yrd Mat Min Exi Min Mat Gar Total Allies 1 | . . . . 1 . . Largest Group 1 | . . . . 1 1 . Highest-Rated Group 31 | . . . . 31 31 . Highest-Rated Ally 31 | . . . . 31 31 . Total Orders . | . . . . . . . Ally Attacks 20 | . . . . . 20 . Total Damage 338 | . . . . . 338 . Kills 5 | . . . . . 5 . Allies Corrupted . | . . . . . . . Allies Melted 1 | . . . . 1 . . Intel | -11 -10 -10 -10 -9 -8 -8 ------- Run | Yrd Mat Min Exi Min Mat Gar Robot Analysis Total . | . . . . . . . Derelict Logs Recovered 2 | . . 1 . 1 . . Drone Launches . | . . . . . . . Drone Recoveries . | . . . . . . . Exploration | -11 -10 -10 -10 -9 -8 -8 ------------- Run | Yrd Mat Min Exi Min Mat Gar Turns Passed 5143 | 56 703 248 934 661 1721 820 Spaces Moved 2675 | 30 380 153 584 401 843 284 Core 8 | 2 . . . . . 6 Treads 1696 | 28 380 153 584 401 66 84 Legs 971 | . . . . . 777 194 Wheels . | . . . . . . . Hover . | . . . . . . . Flight . | . . . . . . . Fastest Speed 50 | 50 160 160 160 160 126 50 Average Speed 164 | 152 160 160 160 160 156 217 Slowest Speed 350 | 160 160 160 160 160 200 350 Overloaded Moves . | . . . . . . . Propulsion Burnouts . | . . . . . . . Robots Hopped . | . . . . . . . Cave-ins Triggered . | . . . . . . . Exploration Rate (%) 49 | 3 67 38 90 64 55 31 Regions Visited 6 Branch Regions 3 Pre-discovered Areas 3 | . . 1 1 1 . . Known Exits Taken 1 | . . . . . 1 . Unknown Exits Taken 5 | 1 1 1 1 1 . . Scrap Searched . | . . . . . . . Spaces Dug . | . . . . . . . Terrain Destroyed 144 | . 65 . . 18 30 31 Melee . | . . . . . . . Projectile 30 | . . . . . 30 . AOE 114 | . 65 . . 18 . 31 Terrain Rammed . | . . . . . . . Walls Destroyed . | . . . . . . . Machines Disabled . | . . . . . . . Actions | -11 -10 -10 -10 -9 -8 -8 --------- Run | Yrd Mat Min Exi Min Mat Gar Total 3133 | 37 428 157 584 415 1107 405 Wait 148 | . . . . 2 121 25 Move 2670 | 29 379 152 583 400 843 284 Hop . | . . . . . . . Pick Up 26 | 1 7 1 1 . 13 3 Fast Attach 28 | 6 5 1 . 1 12 3 Attach 19 | . 2 1 . . 6 10 Detach 13 | . 3 2 . 1 6 1 Swap 17 | . 2 . . 4 6 5 Drop 24 | . 3 . . 2 18 1 Fire 159 | . 26 . . 2 69 62 Melee 1 | . . . . . . 1 Ram . | . . . . . . . Kick 13 | . . . . . 13 . Crush 5 | 1 1 . . 3 . . Escape Stasis 10 | . . . . . . 10 Rewire . | . . . . . . . Trap . | . . . . . . . Miscellaneous . | . . . . . . . Route ------- -11/Scrapyard -10/Materials (discovered 3 exits: [*Mat x2] / [*Min]) -10/Mines -10/Exiles -9/Mines -8/Materials (discovered 3 exits: [*Fac x2] / Gar) -8/Garrison History --------- Turn | Location | Event 19 | -11/Scrapyard | Discovered new exit (range 16) 57 | -11/Scrapyard | Entered Materials 321 | -10/Materials | Build established: Mutant 322 | -10/Materials | Discovered new exit (range 8) 327 | -10/Materials | Lost 3 parts (1p2w) 534 | -10/Materials | Discovered new exit (range 7) 670 | -10/Materials | Discovered new exit (range 17) 760 | -10/Materials | Entered Mines 828 | -10/Mines | Found a damaged Exp. Sensor Array with a note attached 831 | -10/Mines | Found Prototype Device 831 | -10/Mines | Identified Exp. Sensor Array 927 | -10/Mines | A weapon hastily lodged in a ceiling crevice suddenly fell to the ground 1002 | -10/Mines | Deemed a non-threat by the Exiles lab entrance 1002 | -10/Mines | Discovered new exit (range 5) 1008 | -10/Mines | Entered Exiles 1047 | -10/Exiles | Met 8R-AWN 1074 | -10/Exiles | Met EX-HEX 1120 | -10/Exiles | Met EX-BIN 1144 | -10/Exiles | Aligned with FarCom system 1146 | -10/Exiles | Given EX-Vault access code 1224 | -10/Exiles | Opened EX-Vault 1232 | -10/Exiles | Found Trap Reconfigurator 1265 | -10/Exiles | Warned to stay clear of 0b10 Research branches 1315 | -10/Exiles | Met EX-DEC 1325 | -10/Exiles | Learned location of Zion (-7) 1451 | -10/Exiles | Discovered new exit (range 10) 1559 | -10/Exiles | Visited The Gauntlet 1942 | -10/Exiles | Left Exiles lab with Trap Reconfigurator 1942 | -10/Exiles | Entered Mines 1962 | -9/Mines | Joined a pair of Derelicts in attacking an 0b10 outpost 2311 | -9/Mines | Learned location of Storage (-9) 2312 | -9/Mines | Assembled infested the area 2317 | -9/Mines | Assisted by a Guerilla fighting off Assembled 2565 | -9/Mines | Discovered new exit (range 13) 2591 | -9/Mines | Escorted by a lone wolf Derelict 2603 | -9/Mines | Entered Materials 2603 | -8/Materials | Accompanied by 1 ally 2603 | -8/Materials | Evolved 4 slots: Power x1, Propulsion x1, Utility x2 3245 | -8/Materials | Discovered new exit (range 10) 3287 | -8/Materials | Build established: Hacker-Mutant 4218 | -8/Materials | Build established: Mutant 4275 | -8/Materials | Discovered new exit (range 3) 4324 | -8/Materials | Identified exit to Garrison 4324 | -8/Materials | Entered Garrison 4476 | -8/Garrison | Triggered checkpoint 4825 | -8/Garrison | Core integrity fell below 50% 4858 | -8/Garrison | Lost 4 parts (1n2u1w) 4861 | -8/Garrison | Destroyed 9 combat bots 5022 | -8/Garrison | Triggered checkpoint 5064 | -8/Garrison | Triggered checkpoint 5084 | -8/Garrison | Core integrity fell below 20% 5144 | -8/Garrison | Destroyed by G-47 Trooper with Particle Gun Last Messages --------------- 05072_ Lgt. EM Pulse Cannon destroyed. 05073_ Imp. Grenade Launcher destroyed. 05079_ Critical hit (Burn: +37). 05080_ 8L9 G,| MIJA/JOQHHUHMXUK%:JU 05081_ Aluminum Leg destroyed. 05081_ Imp. Deuterium Engine destroyed. 05082_ G-47 Trooper destroyed. 05085_ EM Pulse Cannon destroyed. 05089_ Lgt. Treads destroyed. 05104_ G-47 Trooper destroyed. 05113_ Cooling System destroyed. 05123_ Lgt. Assault Rifle destroyed. 05124_ IYGHZK,>ZQ<|I81SB H/K6X,Y=C3 05138_ Lgt. Nuclear Core destroyed. 05140_ Welding Torch destroyed. 05142_ Rnf. Deuterium Engine destroyed. 05142_ Jacked G-47 Trooper... >>parse_system Reading system data... 05144_ Acquired 25 matter. Map ----- +----------------------------------------------------+ | ?????????????????????????????????????????????????? | | ?????????????????????????????????????????????????? | | ?????????????????????????????????????????????????? | | ?????????????????????????????????????????????????? | | ?????????????????????????????????????????????????? | | ?????????????????????????????????????????????????? | | ?????????????????????????????????????????????????? | | ?????????????????????????????????????????????????? | | ?????????????????????????????????????????????????? | | ?????????????????????????????????????????????????? | | ?????????????????????????????????????????????????? | | ?????????????????????????????????????????????????? | | ?????????????????????????????????????????????????? | | ?????????????????????????????????????????????????? | | ?????????????????????????????????????????????????? | | ?????????????????????????????????????????????????? | | ?????????????????????????????????????????????????? | | ????????????????????????###??????????????????????? | | ????????????????????????# ??????????????????????? | | ????????????????????????# #??????????????????????? | | ?????????????????????#### #??????????????????????? | | ?????????????????????# #??????##??????????????? | | ???????????########### #######T### ##?????????? | | ?????????? %= ????????? | | ?????????? ????????? | | ?????????? @ ????????? | | ????????????????# ## ##^ ^###???????????????? | | ????????????????# ## g ## ###???????????????? | | ????????????????" #???????????????? | | ????????????????" #???????????????? | | ???????????????g" #???????????????? | | ???????????????g" ###?????????????? | | ????????????????# ## ## ### #?????????????? | | ????????????????# ## ## * ######????????? | | ????????????????# ^^ * = ########## | | ???????????? ; ^^ %% = = | | ??????????????### ^^ ## ########## | | ????????????????# ## ## ### # ## #????????? | | ????????????????# ?# ## #?### ## #????????? | | ????????????????# ??#####?# #???# ## #????????# | | ????????????????# ?????????# #???# ## #????????# | | ????????????????# ?????????# #??? ## #???###### | | ???????????????????????????# #???# # #???# | | ???????????????????????????# #???#### #???# #### | | ???????????????????????????# ######## #???# #??? | | ???????????????????????????# ^ ##### #??? | | ???????????????????????????# #??? | | ???????????????????????????########### ########?? | | ?????????????????????????????????????# # ## #?? | | ?????????????????????????????????????# # # #?? | +----------------------------------------------------+ Best States ------------- Heat Dissipation 53 Energy Generation 27 Energy Capacity 480 Matter Stores 300 Matter Capacity 300 Sight Range 18 Terrain Scan Density 10 Armor Coverage 150 Evasion (%) 55 Recoil Reduction 2 Offensive Hacking 20 Item Schematics ----------------- Exp. Sensor Array | -8/Materials | Scanalyzed Imp. Titanium Leg | -8/Materials | Scanalyzed Robot Schematics ------------------ None Fabricated ------------ Nothing Alien Tech Used ----------------- None Achievements -------------- None Challenges ------------ None Game ------ Seed SapperUltimateBrace Manual? 0 Play Time 00:34:28 Cumulative 68.9 hours Start 2024.09.23 @ 01:49:05 End 2024.09.23 @ 18:38:40 Sessions 3 Manual Loads 0 Difficulty Rogue Special Mode None Game No. 140 Rogue 140 Adventurer 0 Explorer 0 Win Type - Total 0 Types 0/0/0/0/0/0/0/0/0 Lore% 21 Gallery% 38 Achievement% 31 Wizard Run 0 Options --------- Layout 1 ASCII 0 Keyboard 1 Movement Arrows Keybinds 0 Fullscreen 1 Font 24/Smallcaps Map View 50x35 Zoom Use 0% Tactical HUD 1 Map Filters NONE Filters NONE Steam 1 RUN: 4fa6f593-2ac8-4469-b8f2-e218515f5407